[Event "Late-Titled-Tuesday-Blitz-February-13-2024"]
[Site "Chess.com"]
[Date "2024.02.13"]
[Round "3"]
[White "Antipov_Mikhail_Al"]
[Black "GianmarcoVaR"]
[Result "1-0"]
[WhiteElo "2966"]
[BlackElo "2719"]
[TimeControl "180+1"]
[EndTime "14:29:15 PST"]
[Termination "Antipov_Mikhail_Al won on time"]

1. e4 {[%clk 0:03:00.9]} 1... c5 {[%clk 0:02:53]} 2. Nf3 {[%clk 0:03:00.8]} 2...
d6 {[%clk 0:02:52.9]} 3. d4 {[%clk 0:03:00.7]} 3... cxd4 {[%clk 0:02:52.7]} 4.
Nxd4 {[%clk 0:03:01.6]} 4... Nf6 {[%clk 0:02:52.3]} 5. Nc3 {[%clk 0:03:00.8]}
5... a6 {[%clk 0:02:52.3]} 6. a3 {[%clk 0:02:59.5]} 6... e5 {[%clk 0:02:49.1]}
7. Nf3 {[%clk 0:02:59.6]} 7... Be7 {[%clk 0:02:38.5]} 8. Bg5 {[%clk 0:02:57.4]}
8... Be6 {[%clk 0:02:28.2]} 9. Bxf6 {[%clk 0:02:55.9]} 9... Bxf6 {[%clk
0:02:28.5]} 10. Nd5 {[%clk 0:02:56.6]} 10... Nd7 {[%clk 0:02:22.8]} 11. Bc4
{[%clk 0:02:53.9]} 11... Be7 {[%clk 0:02:21.5]} 12. c3 {[%clk 0:02:49.1]} 12...
Nf6 {[%clk 0:02:20]} 13. Nxf6+ {[%clk 0:02:42]} 13... Bxf6 {[%clk 0:02:19.9]}
14. Bd5 {[%clk 0:02:38.5]} 14... O-O {[%clk 0:02:09.5]} 15. O-O {[%clk
0:02:37.7]} 15... Qc7 {[%clk 0:02:02.4]} 16. Qb3 {[%clk 0:02:37]} 16... Bg4
{[%clk 0:01:42.8]} 17. Nd2 {[%clk 0:02:34.8]} 17... Rab8 {[%clk 0:01:41.6]} 18.
Nc4 {[%clk 0:02:30.3]} 18... Bg5 {[%clk 0:01:36.8]} 19. Qb6 {[%clk 0:02:22]}
19... Qxb6 {[%clk 0:01:34.8]} 20. Nxb6 {[%clk 0:02:22.9]} 20... Bd8 {[%clk
0:01:22.6]} 21. Nc4 {[%clk 0:02:22.4]} 21... Be2 {[%clk 0:01:13.6]} 22. Rfe1
{[%clk 0:02:22.5]} 22... Bxc4 {[%clk 0:01:14.2]} 23. Bxc4 {[%clk 0:02:23.4]}
23... Bc7 {[%clk 0:01:10.4]} 24. Bd5 {[%clk 0:02:10.9]} 24... b5 {[%clk
0:01:01.4]} 25. Kf1 {[%clk 0:02:10.3]} 25... g6 {[%clk 0:01:00.8]} 26. Ke2
{[%clk 0:02:10.2]} 26... Kg7 {[%clk 0:01:01.5]} 27. Kd3 {[%clk 0:02:10.6]} 27...
f5 {[%clk 0:01:00.3]} 28. f3 {[%clk 0:02:11.5]} 28... h5 {[%clk 0:00:57.4]} 29.
h3 {[%clk 0:02:10.7]} 29... Kf6 {[%clk 0:00:57.9]} 30. Kc2 {[%clk 0:01:46.4]}
30... Kg5 {[%clk 0:00:55.6]} 31. b4 {[%clk 0:01:32.2]} 31... a5 {[%clk
0:00:42.3]} 32. Kb3 {[%clk 0:01:24.4]} 32... Kh4 {[%clk 0:00:37.5]} 33. Rad1
{[%clk 0:01:24]} 33... Kg3 {[%clk 0:00:37.1]} 34. Re2 {[%clk 0:01:24.5]} 34...
Rb6 {[%clk 0:00:31.4]} 35. Rd3 {[%clk 0:01:19]} 35... Ra6 {[%clk 0:00:28.8]} 36.
Kb2 {[%clk 0:01:08.1]} 36... Bb8 {[%clk 0:00:25.1]} 37. Be6 {[%clk 0:01:06]}
37... Kf4 {[%clk 0:00:21.8]} 38. Bd7 {[%clk 0:00:24]} 38... axb4 {[%clk
0:00:18.5]} 39. axb4 {[%clk 0:00:22.4]} 39... Rb6 {[%clk 0:00:15.3]} 40. Rd5
{[%clk 0:00:22.5]} 40... Kg3 {[%clk 0:00:11.1]} 41. Bxb5 {[%clk 0:00:19.3]}
41... fxe4 {[%clk 0:00:10.6]} 42. fxe4 {[%clk 0:00:19.3]} 42... Rf2 {[%clk
0:00:10.2]} 43. Rxf2 {[%clk 0:00:18.5]} 43... Kxf2 {[%clk 0:00:10.5]} 44. Rd2+
{[%clk 0:00:16.1]} 44... Ke1 {[%clk 0:00:09.3]} 45. Re2+ {[%clk 0:00:14.6]}
45... Kf1 {[%clk 0:00:08.9]} 46. Bc4 {[%clk 0:00:09.6]} 46... Rc6 {[%clk
0:00:05.7]} 47. Bd3 {[%clk 0:00:09.6]} 47... Ba7 {[%clk 0:00:04.5]} 48. g4
{[%clk 0:00:06.4]} 48... h4 {[%clk 0:00:03.4]} 49. Kb3 {[%clk 0:00:06.4]} 49...
Kg1 {[%clk 0:00:03.5]} 50. Bb5 {[%clk 0:00:04.7]} 50... Rc7 {[%clk 0:00:03.3]}
51. g5 {[%clk 0:00:04.7]} 51... Bf2 {[%clk 0:00:03]} 52. Be8 {[%clk 0:00:04.7]}
52... Kg2 {[%clk 0:00:02.3]} 53. Bxg6 {[%clk 0:00:04.1]} 53... Rg7 {[%clk
0:00:02.1]} 54. Bf5 {[%clk 0:00:02.9]} 54... Rxg5 {[%clk 0:00:02.7]} 55. b5
{[%clk 0:00:03.1]} 55... Rg7 {[%clk 0:00:02.4]} 56. Kc4 {[%clk 0:00:03.2]} 56...
Kf3 {[%clk 0:00:02.8]} 57. Rb2 {[%clk 0:00:03.4]} 57... Bb6 {[%clk 0:00:02.7]}
58. Kd5 {[%clk 0:00:03.9]} 58... Rc7 {[%clk 0:00:02.7]} 59. c4 {[%clk
0:00:03.2]} 59... Rc5+ {[%clk 0:00:02.5]} 60. Kxd6 {[%clk 0:00:03.9]} 60... Rxc4
{[%clk 0:00:03.1]} 61. Kxe5 {[%clk 0:00:03.1]} 61... Ra4 {[%clk 0:00:01.5]} 62.
Kd5 {[%clk 0:00:02.8]} 62... Rd4+ {[%clk 0:00:01.6]} 63. Kc6 {[%clk 0:00:02.9]}
63... Ba5 {[%clk 0:00:01.6]} 64. b6 {[%clk 0:00:03.4]} 64... Rc4+ {[%clk
0:00:01.5]} 65. Kd5 {[%clk 0:00:03.8]} 1-0

[Event "Late-Titled-Tuesday-Blitz-February-13-2024"]
[Site "Chess.com"]
[Date "2024.02.13"]
[Round "3"]
[White "SchmakAttack"]
[Black "Konavets"]
[Result "1-0"]
[WhiteElo "2797"]
[BlackElo "3022"]
[TimeControl "180+1"]
[EndTime "14:29:22 PST"]
[Termination "SchmakAttack won by resignation"]

1. d4 {[%clk 0:03:00.9]} 1... Nf6 {[%clk 0:02:53.4]} 2. c4 {[%clk 0:03:00.4]}
2... e5 {[%clk 0:02:52.7]} 3. dxe5 {[%clk 0:02:58.5]} 3... Ng4 {[%clk
0:02:53.1]} 4. e4 {[%clk 0:02:52.5]} 4... Nxe5 {[%clk 0:02:52.8]} 5. f4 {[%clk
0:02:52.4]} 5... Nec6 {[%clk 0:02:53.3]} 6. Nc3 {[%clk 0:02:48]} 6... Bc5 {[%clk
0:02:53.1]} 7. Nf3 {[%clk 0:02:46.8]} 7... a5 {[%clk 0:02:53.2]} 8. Bd3 {[%clk
0:02:20.5]} 8... d6 {[%clk 0:02:53]} 9. f5 {[%clk 0:02:07.7]} 9... Nd7 {[%clk
0:02:51.2]} 10. Bg5 {[%clk 0:02:04.4]} 10... f6 {[%clk 0:02:51.2]} 11. Bf4
{[%clk 0:02:04.7]} 11... Nde5 {[%clk 0:02:50.5]} 12. Qe2 {[%clk 0:01:57.8]}
12... Nb4 {[%clk 0:01:51.1]} 13. Bxe5 {[%clk 0:01:37.5]} 13... dxe5 {[%clk
0:01:45.2]} 14. O-O-O {[%clk 0:01:37.6]} 14... c6 {[%clk 0:01:42.7]} 15. a3
{[%clk 0:01:33.1]} 15... Na6 {[%clk 0:01:41.7]} 16. g4 {[%clk 0:01:27.6]} 16...
Qe7 {[%clk 0:01:36.4]} 17. h4 {[%clk 0:01:25.4]} 17... Bd7 {[%clk 0:01:35]} 18.
g5 {[%clk 0:01:18.4]} 18... O-O-O {[%clk 0:01:34.6]} 19. Bc2 {[%clk 0:01:18.9]}
19... Ba7 {[%clk 0:01:32.9]} 20. Na4 {[%clk 0:01:05.6]} 20... Nc5 {[%clk
0:01:31.8]} 21. Nxc5 {[%clk 0:01:05.2]} 21... Qxc5 {[%clk 0:01:31.4]} 22. Kb1
{[%clk 0:01:01.1]} 22... Kc7 {[%clk 0:01:30.7]} 23. h5 {[%clk 0:00:50.8]} 23...
h6 {[%clk 0:01:16.5]} 24. gxf6 {[%clk 0:00:50.8]} 24... gxf6 {[%clk 0:01:17.4]}
25. Nh4 {[%clk 0:00:51.4]} 25... Bc8 {[%clk 0:01:14.6]} 26. Ng6 {[%clk
0:00:51.6]} 26... Rhg8 {[%clk 0:01:11]} 27. Rd2 {[%clk 0:00:35.3]} 27... Qe3
{[%clk 0:01:00.2]} 28. Qxe3 {[%clk 0:00:32.2]} 28... Bxe3 {[%clk 0:01:01.1]} 29.
Rxd8 {[%clk 0:00:32.7]} 29... Rxd8 {[%clk 0:01:01.1]} 30. Rd1 {[%clk 0:00:33.3]}
30... Re8 {[%clk 0:00:56.9]} 31. b4 {[%clk 0:00:25.5]} 31... b6 {[%clk
0:00:55.9]} 32. Kb2 {[%clk 0:00:22.4]} 32... Bd4+ {[%clk 0:00:55.9]} 33. Kb3
{[%clk 0:00:22.2]} 33... c5 {[%clk 0:00:51.2]} 34. b5 {[%clk 0:00:14.5]} 34...
Bb7 {[%clk 0:00:47.2]} 35. a4 {[%clk 0:00:14.3]} 35... Kd6 {[%clk 0:00:40.3]}
36. Rd2 {[%clk 0:00:13.3]} 36... Rd8 {[%clk 0:00:40]} 37. Rd1 {[%clk 0:00:13.5]}
37... Kd7 {[%clk 0:00:39.4]} 38. Rd2 {[%clk 0:00:13.8]} 38... Ke8 {[%clk
0:00:39.8]} 39. Rd1 {[%clk 0:00:14]} 39... Kf7 {[%clk 0:00:40]} 40. Rd2 {[%clk
0:00:13.8]} 40... Bc8 {[%clk 0:00:34.9]} 41. Rd1 {[%clk 0:00:13.5]} 41... Bd7
{[%clk 0:00:35.2]} 42. Rd2 {[%clk 0:00:14]} 42... Be8 {[%clk 0:00:35.6]} 43. Rd1
{[%clk 0:00:14.4]} 43... Kg7 {[%clk 0:00:36.1]} 44. Rd2 {[%clk 0:00:13.6]} 44...
Rd7 {[%clk 0:00:33.5]} 45. Rd1 {[%clk 0:00:13.7]} 45... Bf7 {[%clk 0:00:19.4]}
46. Rd2 {[%clk 0:00:11.6]} 46... Rd8 {[%clk 0:00:18.2]} 47. Rd1 {[%clk
0:00:11.7]} 47... Re8 {[%clk 0:00:18.4]} 48. Rd2 {[%clk 0:00:11.7]} 48... Bxg6
{[%clk 0:00:18.8]} 49. fxg6 {[%clk 0:00:08.6]} 49... f5 {[%clk 0:00:19.7]} 50.
exf5 {[%clk 0:00:08.7]} 50... e4 {[%clk 0:00:20.6]} 51. Re2 {[%clk 0:00:09]}
51... e3 {[%clk 0:00:19.9]} 52. Bd3 {[%clk 0:00:04.4]} 52... Be5 {[%clk
0:00:17.6]} 53. Kc2 {[%clk 0:00:04.5]} 53... Bg3 {[%clk 0:00:18]} 54. Rg2 {[%clk
0:00:03.1]} 54... Bh4 {[%clk 0:00:18.5]} 55. Kd1 {[%clk 0:00:03.4]} 55... Bg5
{[%clk 0:00:17.8]} 56. Ke2 {[%clk 0:00:03.7]} 56... Kf6 {[%clk 0:00:14.1]} 57.
Rg4 {[%clk 0:00:03.4]} 57... Re5 {[%clk 0:00:10.3]} 58. Rg2 {[%clk 0:00:02.4]}
58... Kg7 {[%clk 0:00:08.9]} 59. Rg4 {[%clk 0:00:02.6]} 59... Kf6 {[%clk
0:00:09.4]} 60. Rg2 {[%clk 0:00:03.3]} 60... Re7 {[%clk 0:00:09.2]} 61. Rg4
{[%clk 0:00:03.5]} 61... Re8 {[%clk 0:00:06.9]} 62. Re4 {[%clk 0:00:03.7]} 62...
Rxe4 {[%clk 0:00:05.7]} 63. Bxe4 {[%clk 0:00:04.6]} 63... Kg7 {[%clk 0:00:06.4]}
64. Bd3 {[%clk 0:00:04.5]} 64... Kf6 {[%clk 0:00:06.9]} 65. Kf3 {[%clk
0:00:05.1]} 65... Kg7 {[%clk 0:00:04]} 66. Ke4 {[%clk 0:00:05.4]} 66... Bd8
{[%clk 0:00:02.1]} 67. Kxe3 {[%clk 0:00:05.6]} 67... Kf6 {[%clk 0:00:01.9]} 68.
Ke4 {[%clk 0:00:05.8]} 68... Kg5 {[%clk 0:00:02.8]} 69. Ke5 {[%clk 0:00:05.7]}
69... Bf6+ {[%clk 0:00:01.9]} 70. Ke6 {[%clk 0:00:06.3]} 70... Bd4 {[%clk
0:00:02.5]} 71. Kf7 {[%clk 0:00:06.4]} 71... Kxh5 {[%clk 0:00:03.1]} 72. g7
{[%clk 0:00:07]} 1-0

[Event "Late-Titled-Tuesday-Blitz-February-13-2024"]
[Site "Chess.com"]
[Date "2024.02.13"]
[Round "3"]
[White "wild3000"]
[Black "aqibjbutt"]
[Result "1/2-1/2"]
[WhiteElo "2319"]
[BlackElo "2060"]
[TimeControl "180+1"]
[EndTime "14:29:26 PST"]
[Termination "Game drawn by repetition"]

1. d4 {[%clk 0:02:53.2]} 1... d5 {[%clk 0:02:58.8]} 2. c3 {[%clk 0:02:53]} 2...
c6 {[%clk 0:02:59.5]} 3. Nd2 {[%clk 0:02:53]} 3... Nf6 {[%clk 0:03:00]} 4. g3
{[%clk 0:02:52.7]} 4... Bf5 {[%clk 0:03:00]} 5. Bg2 {[%clk 0:02:53.2]} 5... e6
{[%clk 0:03:00.7]} 6. Ngf3 {[%clk 0:02:53.4]} 6... Bd6 {[%clk 0:03:01.1]} 7. O-O
{[%clk 0:02:53.9]} 7... Nbd7 {[%clk 0:03:01.7]} 8. Re1 {[%clk 0:02:52.8]} 8...
O-O {[%clk 0:03:02.2]} 9. Nh4 {[%clk 0:02:52.7]} 9... Bg6 {[%clk 0:02:58.4]} 10.
Nxg6 {[%clk 0:02:52.4]} 10... hxg6 {[%clk 0:02:59.3]} 11. e4 {[%clk 0:02:53.2]}
11... dxe4 {[%clk 0:02:58.8]} 12. Nxe4 {[%clk 0:02:54.1]} 12... Nxe4 {[%clk
0:02:59.4]} 13. Bxe4 {[%clk 0:02:55]} 13... Nf6 {[%clk 0:02:53.7]} 14. Bg2
{[%clk 0:02:55.1]} 14... Re8 {[%clk 0:02:54.2]} 15. Bg5 {[%clk 0:02:52.5]} 15...
e5 {[%clk 0:02:50.3]} 16. dxe5 {[%clk 0:02:51.9]} 16... Bxe5 {[%clk 0:02:48.8]}
17. Qb3 {[%clk 0:02:51.6]} 17... Qb6 {[%clk 0:02:45.3]} 18. Be3 {[%clk
0:02:49.4]} 18... Qxb3 {[%clk 0:02:43.1]} 19. axb3 {[%clk 0:02:50.3]} 19... a6
{[%clk 0:02:40.7]} 20. h3 {[%clk 0:02:47.8]} 20... Bc7 {[%clk 0:02:38.7]} 21.
Red1 {[%clk 0:02:39.3]} 21... Rad8 {[%clk 0:02:38.5]} 22. b4 {[%clk 0:02:34.7]}
22... Nd5 {[%clk 0:02:36.5]} 23. Bc5 {[%clk 0:02:30.5]} 23... Nf6 {[%clk
0:02:19.9]} 24. Kf1 {[%clk 0:02:27.7]} 24... Ne4 {[%clk 0:02:13]} 25. Be3 {[%clk
0:02:23.8]} 25... Nxg3+ {[%clk 0:02:10.6]} 26. fxg3 {[%clk 0:02:21.5]} 26...
Rxe3 {[%clk 0:02:08.7]} 27. Rxd8+ {[%clk 0:02:20.4]} 27... Bxd8 {[%clk
0:02:09.2]} 28. Rd1 {[%clk 0:02:19.9]} 28... Bf6 {[%clk 0:01:56.2]} 29. g4
{[%clk 0:02:15.1]} 29... g5 {[%clk 0:01:50.3]} 30. Kf2 {[%clk 0:02:12.4]} 30...
Re7 {[%clk 0:01:48.2]} 31. Rd8+ {[%clk 0:02:08]} 31... Kh7 {[%clk 0:01:47.2]}
32. Rd3 {[%clk 0:02:01.4]} 32... g6 {[%clk 0:01:44.3]} 33. Re3 {[%clk
0:01:59.9]} 33... Kg7 {[%clk 0:01:42.8]} 34. Rxe7 {[%clk 0:01:59.4]} 34... Bxe7
{[%clk 0:01:43.7]} 35. Ke3 {[%clk 0:01:59.8]} 35... f5 {[%clk 0:01:38.7]} 36.
Kd4 {[%clk 0:01:59.1]} 36... Kf6 {[%clk 0:01:36.3]} 37. Bf3 {[%clk 0:01:57.9]}
37... Bd6 {[%clk 0:01:35.8]} 38. Be2 {[%clk 0:01:52.8]} 38... Ke6 {[%clk
0:01:35.7]} 39. Bc4+ {[%clk 0:01:52.2]} 39... Kf6 {[%clk 0:01:36.2]} 40. Be2
{[%clk 0:01:51.9]} 40... Ke6 {[%clk 0:01:34.6]} 41. Bc4+ {[%clk 0:01:51.3]}
41... Ke7 {[%clk 0:01:30.3]} 42. Be2 {[%clk 0:01:47.9]} 42... Kd7 {[%clk
0:01:21.7]} 43. Bd3 {[%clk 0:01:42.6]} 43... Kc7 {[%clk 0:01:12.7]} 44. gxf5
{[%clk 0:01:40.2]} 44... gxf5 {[%clk 0:01:13.6]} 45. Bxf5 {[%clk 0:01:40.7]}
45... Bf4 {[%clk 0:01:14.5]} 46. b3 {[%clk 0:01:38.3]} 46... Bd2 {[%clk
0:01:13.6]} 47. Kd3 {[%clk 0:01:37.1]} 47... Bf4 {[%clk 0:01:12.6]} 48. Bg4
{[%clk 0:01:28.5]} 48... Bc1 {[%clk 0:01:11.5]} 49. Bf3 {[%clk 0:01:27.7]} 49...
Bf4 {[%clk 0:01:11.1]} 50. c4 {[%clk 0:01:26.3]} 50... b6 {[%clk 0:01:07.8]} 51.
b5 {[%clk 0:01:24.6]} 51... cxb5 {[%clk 0:01:02.9]} 52. cxb5 {[%clk 0:01:25.5]}
52... axb5 {[%clk 0:00:59.2]} 53. Ke4 {[%clk 0:01:26.4]} 53... Bd2 {[%clk
0:00:57.1]} 54. Be2 {[%clk 0:01:25.4]} 54... Kc6 {[%clk 0:00:55.2]} 55. Kd3
{[%clk 0:01:25.4]} 55... Bf4 {[%clk 0:00:54]} 56. Bf3+ {[%clk 0:01:25.3]} 56...
Kc5 {[%clk 0:00:53.9]} 57. Bh5 {[%clk 0:01:24.3]} 57... Kb4 {[%clk 0:00:52.5]}
58. Bf7 {[%clk 0:01:24.4]} 58... Bg3 {[%clk 0:00:50.2]} 59. Ke4 {[%clk
0:01:25.3]} 59... Bh4 {[%clk 0:00:50.2]} 60. Kf3 {[%clk 0:01:24.8]} 60... Kc3
{[%clk 0:00:49.9]} 61. Ke4 {[%clk 0:01:24.7]} 61... Kd2 {[%clk 0:00:49.5]} 62.
Kd5 {[%clk 0:01:24.5]} 62... Ke2 {[%clk 0:00:43.3]} 63. Kc6 {[%clk 0:01:23.6]}
63... Bf2 {[%clk 0:00:42.9]} 64. Kxb5 {[%clk 0:01:21.1]} 64... Kf3 {[%clk
0:00:42.8]} 65. Be6 {[%clk 0:01:21.1]} 65... Kg3 {[%clk 0:00:42.6]} 66. Kc4
{[%clk 0:01:19.3]} 66... Kh4 {[%clk 0:00:43.1]} 67. Kd3 {[%clk 0:01:19.3]} 67...
Bg1 {[%clk 0:00:40]} 68. Ke2 {[%clk 0:01:19.2]} 68... Bd4 {[%clk 0:00:39.5]} 69.
Bg4 {[%clk 0:01:18.4]} 69... Bc5 {[%clk 0:00:39.2]} 70. Kf3 {[%clk 0:01:18.3]}
70... Bg1 {[%clk 0:00:39]} 71. Kg2 {[%clk 0:01:18.2]} 71... Bc5 {[%clk
0:00:39.3]} 72. Be6 {[%clk 0:01:18.4]} 72... Ba3 {[%clk 0:00:37.1]} 73. Bf5
{[%clk 0:01:18.4]} 73... Bc5 {[%clk 0:00:37.5]} 74. Bg4 {[%clk 0:01:19.3]} 74...
Bd4 {[%clk 0:00:37.2]} 75. Kf3 {[%clk 0:01:20.2]} 75... Bc5 {[%clk 0:00:36.6]}
76. Ke2 {[%clk 0:01:21.1]} 76... Bg1 {[%clk 0:00:35.1]} 77. Kd3 {[%clk
0:01:21.3]} 77... Bf2 {[%clk 0:00:33.1]} 78. Ke4 {[%clk 0:01:21.1]} 78... Bg1
{[%clk 0:00:32.8]} 79. Kd5 {[%clk 0:01:21.4]} 79... Bf2 {[%clk 0:00:32.9]} 80.
b4 {[%clk 0:01:21.6]} 80... Bg1 {[%clk 0:00:32.6]} 81. Kc4 {[%clk 0:01:22.2]}
81... Bf2 {[%clk 0:00:32.1]} 82. b5 {[%clk 0:01:22.2]} 82... Bg1 {[%clk
0:00:31.4]} 83. Kd3 {[%clk 0:01:22.4]} 83... Bf2 {[%clk 0:00:31.6]} 84. Ke2
{[%clk 0:01:23.3]} 84... Bc5 {[%clk 0:00:31.9]} 85. Kf3 {[%clk 0:01:24.2]} 85...
Bd4 {[%clk 0:00:31.9]} 86. Kg2 {[%clk 0:01:25.1]} 86... Bc5 {[%clk 0:00:32.7]}
87. Bf3 {[%clk 0:01:26]} 87... g4 {[%clk 0:00:32.5]} 88. Bxg4 {[%clk 0:01:26.9]}
88... Kg5 {[%clk 0:00:32.6]} 89. Kg3 {[%clk 0:01:26.2]} 89... Kh6 {[%clk
0:00:33.1]} 90. h4 {[%clk 0:01:25.8]} 90... Kg7 {[%clk 0:00:33.4]} 91. h5 {[%clk
0:01:25.8]} 91... Kh8 {[%clk 0:00:34.2]} 92. Kf3 {[%clk 0:01:25.9]} 92... Bg1
{[%clk 0:00:34.2]} 93. Bf5 {[%clk 0:01:25.6]} 93... Bc5 {[%clk 0:00:35.1]} 94.
Kg4 {[%clk 0:01:25.6]} 94... Bg1 {[%clk 0:00:35]} 95. h6 {[%clk 0:01:24.8]}
95... Bc5 {[%clk 0:00:35.9]} 96. Kh5 {[%clk 0:01:25]} 96... Bg1 {[%clk
0:00:36.7]} 97. Kg6 {[%clk 0:01:25.2]} 97... Bc5 {[%clk 0:00:37.6]} 98. h7
{[%clk 0:01:25.7]} 98... Bg1 {[%clk 0:00:37.6]} 99. Kf7 {[%clk 0:01:26.6]} 99...
Bc5 {[%clk 0:00:37]} 100. Be4 {[%clk 0:01:27.5]} 100... Bg1 {[%clk 0:00:37.8]}
101. Bd3 {[%clk 0:01:28.4]} 101... Bf2 {[%clk 0:00:38.3]} 102. Be4 {[%clk
0:01:28.9]} 102... Bg1 {[%clk 0:00:39.2]} 103. Bd3 {[%clk 0:01:29.8]} 103... Bf2
{[%clk 0:00:39.4]} 104. Be4 {[%clk 0:01:30.7]} 104... Bg1 {[%clk 0:00:40.3]}
1/2-1/2

[Event "Late-Titled-Tuesday-Blitz-February-13-2024"]
[Site "Chess.com"]
[Date "2024.02.13"]
[Round "3"]
[White "GaiozNigalidze"]
[Black "subham777"]
[Result "0-1"]
[WhiteElo "2674"]
[BlackElo "2515"]
[TimeControl "180+1"]
[EndTime "14:29:30 PST"]
[Termination "subham777 won on time"]

1. d4 {[%clk 0:03:00]} 1... d5 {[%clk 0:02:58.9]} 2. c4 {[%clk 0:02:59.8]} 2...
e6 {[%clk 0:02:57.1]} 3. Nc3 {[%clk 0:02:59.1]} 3... Nf6 {[%clk 0:02:56.6]} 4.
Nf3 {[%clk 0:02:58.4]} 4... Be7 {[%clk 0:02:56.6]} 5. Bf4 {[%clk 0:02:57.7]}
5... O-O {[%clk 0:02:56.4]} 6. e3 {[%clk 0:02:57.1]} 6... Ne4 {[%clk 0:02:55.6]}
7. Bd3 {[%clk 0:02:53.8]} 7... f5 {[%clk 0:02:52.9]} 8. cxd5 {[%clk 0:02:51.5]}
8... exd5 {[%clk 0:02:52]} 9. Qb3 {[%clk 0:02:49.3]} 9... Nxc3 {[%clk 0:02:46]}
10. bxc3 {[%clk 0:02:48.5]} 10... c6 {[%clk 0:02:46.1]} 11. c4 {[%clk
0:02:46.1]} 11... dxc4 {[%clk 0:02:41.2]} 12. Bxc4+ {[%clk 0:02:42.1]} 12... Kh8
{[%clk 0:02:41.1]} 13. Ne5 {[%clk 0:02:31.1]} 13... Qa5+ {[%clk 0:02:21]} 14.
Ke2 {[%clk 0:02:21.9]} 14... b5 {[%clk 0:02:06]} 15. Bd3 {[%clk 0:01:47.3]}
15... g5 {[%clk 0:01:50.3]} 16. Nf7+ {[%clk 0:01:40.7]} 16... Kg7 {[%clk
0:01:50.3]} 17. Nxg5 {[%clk 0:01:34.2]} 17... Qb4 {[%clk 0:01:40.3]} 18. Ne6+
{[%clk 0:01:25.3]} 18... Bxe6 {[%clk 0:01:29.1]} 19. Qxe6 {[%clk 0:01:24.8]}
19... Rf7 {[%clk 0:01:16.2]} 20. Rhb1 {[%clk 0:01:19.5]} 20... Qa3 {[%clk
0:01:08]} 21. Bh6+ {[%clk 0:01:07.9]} 21... Kg8 {[%clk 0:01:03]} 22. Bxf5 {[%clk
0:01:02.6]} 22... Bf8 {[%clk 0:00:54.7]} 23. Rb3 {[%clk 0:00:52.7]} 23... Qd6
{[%clk 0:00:40.2]} 24. Bf4 {[%clk 0:00:50.2]} 24... Qe7 {[%clk 0:00:34.6]} 25.
Rc1 {[%clk 0:00:44.3]} 25... Bg7 {[%clk 0:00:25.4]} 26. Qxe7 {[%clk 0:00:40.1]}
26... Rxe7 {[%clk 0:00:24.9]} 27. Bd6 {[%clk 0:00:39.2]} 27... Re8 {[%clk
0:00:22.4]} 28. Kf3 {[%clk 0:00:38.2]} 28... a5 {[%clk 0:00:19.7]} 29. Bxb8
{[%clk 0:00:32.6]} 29... Raxb8 {[%clk 0:00:17.3]} 30. Rxc6 {[%clk 0:00:31.5]}
30... Rf8 {[%clk 0:00:17.4]} 31. g4 {[%clk 0:00:31]} 31... b4 {[%clk 0:00:14.5]}
32. Ra6 {[%clk 0:00:30.7]} 32... Rb5 {[%clk 0:00:14.4]} 33. Ke2 {[%clk
0:00:28.9]} 33... Rd8 {[%clk 0:00:07.8]} 34. d5 {[%clk 0:00:28.2]} 34... Kh8
{[%clk 0:00:05.5]} 35. Be6 {[%clk 0:00:28.2]} 35... Rc5 {[%clk 0:00:04.9]} 36.
Kd3 {[%clk 0:00:25.8]} 36... Be5 {[%clk 0:00:02.9]} 37. f4 {[%clk 0:00:25.6]}
37... Bc7 {[%clk 0:00:03.5]} 38. g5 {[%clk 0:00:24.2]} 38... Rc1 {[%clk
0:00:03]} 39. Rb2 {[%clk 0:00:23.1]} 39... Rd1+ {[%clk 0:00:02.7]} 40. Ke4
{[%clk 0:00:23.1]} 40... Re8 {[%clk 0:00:01.6]} 41. Rc6 {[%clk 0:00:22.7]} 41...
Bd8 {[%clk 0:00:01.8]} 42. Kf5 {[%clk 0:00:21.2]} 42... Rf8+ {[%clk 0:00:02.3]}
43. Ke4 {[%clk 0:00:20.7]} 43... Re1 {[%clk 0:00:02.8]} 44. Rbc2 {[%clk
0:00:20.4]} 44... a4 {[%clk 0:00:02.3]} 45. Rb2 {[%clk 0:00:17.9]} 45... b3
{[%clk 0:00:02.6]} 46. axb3 {[%clk 0:00:17.8]} 46... a3 {[%clk 0:00:03.5]} 47.
Ra2 {[%clk 0:00:18.1]} 47... Be7 {[%clk 0:00:03.2]} 48. Rc7 {[%clk 0:00:18.1]}
48... Bb4 {[%clk 0:00:02.9]} 49. Rb7 {[%clk 0:00:17.7]} 49... Bc5 {[%clk
0:00:02]} 50. Kd3 {[%clk 0:00:17.1]} 50... Rxe3+ {[%clk 0:00:02.5]} 51. Kc4
{[%clk 0:00:17.4]} 51... Bd6 {[%clk 0:00:03.2]} 52. b4 {[%clk 0:00:17.3]} 52...
Rxf4+ {[%clk 0:00:03.7]} 53. Kb5 {[%clk 0:00:17.1]} 53... Rxb4+ {[%clk
0:00:03.9]} 54. Kc6 {[%clk 0:00:16.5]} 54... Rc3+ {[%clk 0:00:04.5]} 55. Kxd6
{[%clk 0:00:16.5]} 55... Rxb7 {[%clk 0:00:05.1]} 56. Ke5 {[%clk 0:00:16.7]}
56... Rb2 {[%clk 0:00:05.2]} 57. Ra1 {[%clk 0:00:16.3]} 57... a2 {[%clk
0:00:05.1]} 58. d6 {[%clk 0:00:16.6]} 58... Re2+ {[%clk 0:00:05.2]} 59. Kf6
{[%clk 0:00:16.4]} 59... Rf3+ {[%clk 0:00:04.8]} 60. Ke7 {[%clk 0:00:16.3]}
60... Rfe3 {[%clk 0:00:04.3]} 61. Rxa2 {[%clk 0:00:14.4]} 61... Rxe6+ {[%clk
0:00:03.9]} 62. Kd7 {[%clk 0:00:14.5]} 62... Rxd6+ {[%clk 0:00:04.3]} 63. Kxd6
{[%clk 0:00:14.5]} 63... Rxa2 {[%clk 0:00:05.2]} 64. h4 {[%clk 0:00:14.6]} 64...
Rh2 {[%clk 0:00:05.2]} 65. g6 {[%clk 0:00:09.6]} 65... hxg6 {[%clk 0:00:04.3]}
66. h5 {[%clk 0:00:09.5]} 66... Rxh5 {[%clk 0:00:03.5]} 0-1